Cogmind - Beta 14 @@@ ROGUE MODE // 2025.03.25 @ 18:09:05 Player: Beelzebelt Result: Destroyed by DAS Turret with DAS Cannon Performance ------------- Evolutions (0) 0 Regions Visited (3) 600 Robots Destroyed (14) 70 Value Destroyed (393) 393 Prototype IDs (0) 0 Alien Tech Used (0) 0 Bonus (0) 0 TOTAL SCORE: 1063 Bonus ------- None Cogmind --------- Core Integrity 0/250 Matter 300/300 Energy 98/100 System Corruption 2% Temperature Cool (0) Movement Core (50) Location -10/Exiles Parts ------- > --- POWER (1) -------- (None) > --- PROPULSION (2) --- (None) > --- UTILITY (2) ------ Terrain Scan Processor > --- WEAPON (2) ------- (None) > --- INVENTORY (5) ---- Small Storage Unit Assault Rifle Grenade Launcher Peak State ------------ > --- POWER ------------ Ion Engine > --- PROPULSION ------- Aluminum Leg Aluminum Leg > --- UTILITY ---------- Improved Terrain Scanner Terrain Scan Processor > --- WEAPON ----------- EM Pulse Gun Particle Gun > --- INVENTORY -------- Aluminum Leg Small Storage Unit Assault Rifle Grenade Launcher [Rating: 11] Favorites ----------- Power Ion Engine Engine Ion Engine Propulsion Aluminum Leg Leg Aluminum Leg Utility Terrain Scan Processor Device Improved Terrain Scanner Processor Terrain Scan Processor Weapon EM Pulse Gun Energy Gun EM Pulse Gun Build | -11 -10 -10 -10 ------- Run | Yrd Mat Min Exi Slots Evolved . | . . . . Power . | . . . . Propulsion . | . . . . Utility . | . . . . Weapon . | . . . . Parts Attached 15 | 6 5 4 . Power 4 | 2 2 . . Engine 4 | 2 2 . . Core . | . . . . Reactor . | . . . . Propulsion 5 | 2 1 2 . Treads . | . . . . Leg 5 | 2 1 2 . Wheel . | . . . . Hover . | . . . . Flight . | . . . . Utility 3 | . 2 1 . Device 2 | . 1 1 . Storage . | . . . . Processor 1 | . 1 . . Hackware . | . . . . Protection . | . . . . Artifact . | . . . . Weapon 3 | 2 . 1 . Energy Gun 3 | 2 . 1 . Energy Cannon . | . . . . Ballistic Gun . | . . . . Ballistic Cannon . | . . . . Launcher . | . . . . Special Weapon . | . . . . Impact Weapon . | . . . . Slashing Weapon . | . . . . Piercing Weapon . | . . . . Special Melee Weapon . | . . . . Unidentified Prototypes . | . . . . Parts Lost 7 | . . 1 6 Power 1 | . . . 1 Propulsion 2 | . . . 2 Utility 1 | . . . 1 Weapon 3 | . . 1 2 Highest Loss Streak 6 | . . 1 6 To Critical Strikes . | . . . . Average Slot Usage (%) 96 | . 93 99 98 Engine 13 | . 14 14 13 Leg 27 | . 28 28 27 Device 12 | . 10 14 13 Processor 12 | . 10 14 14 Energy Gun 27 | . 28 27 27 Peak Build Rating 11 | 5 8 11 11 Average Rating 8 | 4 7 9 10 On Entrance 6 | . 5 8 11 Naked Turns . | . . . . Heaviest Build 11 | 9 10 11 11 Greatest Support 20 | 20 20 20 20 Greatest Overweight (x) . | . . . . Average Overweight (x) . | . . . . Largest Inventory Capacity 5 | 5 5 5 5 Average Capacity 5 | 5 5 5 5 Most Carried 5 | 5 5 5 3 Average Carried 3 | 2 4 4 3 Final Capacity 5 | 5 5 5 5 Final Carried 5 | 5 5 3 3 Class Distribution -------------------- 67% | Scavenger-Mutant 32% | Mutant Dominant Class ---------------- Mutant | -10/Materials Scavenger-Mutant | -10/Mines Scavenger-Mutant | -10/Exiles Resources | -11 -10 -10 -10 ----------- Run | Yrd Mat Min Exi Matter Collected 338 | 260 48 30 . Remotely . | . . . . Salvage Created 624 | 78 338 208 . Parts 35 | 2 23 10 . Haulers Intercepted . | . . . . Recyclers Shooed 1 | . 1 . . Parts Field Recycled . | . . . . Retrieved Matter . | . . . . Parts Self-Destructed . | . . . . Prevented . | . . . . Kills | -11 -10 -10 -10 ------- Run | Yrd Mat Min Exi Combat Hostiles Destroyed 9 | 1 4 4 . Guns 8 | 1 4 3 . AOE 1 | . . 1 . Classes Destroyed 6 | 2 3 1 . Worker 1 | 1 . . . Builder 1 | . 1 . . Tunneler 1 | . . 1 . Recycler 1 | . 1 . . Watcher 1 | . 1 . . Grunt 9 | 1 4 4 . Best Kill Streak 6 | 1 6 2 . Combat Bots Only 4 | 1 4 2 . Max Kills in Single Turn 1 | 1 1 1 . Gunslinging . | . . . . Exploded 1 | . . 1 . Melee . | . . . . Uniques/NPCs Destroyed . | . . . . Combat | -11 -10 -10 -10 -------- Run | Yrd Mat Min Exi Hostile Shots Fired 54 | 4 10 20 20 Missed 15 | 2 1 5 7 Damage Taken 783 | 22 156 259 346 Core 265 | . 68 84 113 Absorbed by Shields . | . . . . Core Remaining (%) 100 | 100 . . . Volleys Fired 34 | 9 12 13 . Largest 2 | 2 2 2 . Hottest 105 | 80 80 105 . Shots Fired 66 | 18 24 23 1 Gun 66 | 18 24 23 1 Cannon . | . . . . Launcher . | . . . . Special . | . . . . Kinetic . | . . . . Thermal 6 | . . 6 . Explosive . | . . . . Electromagnetic 60 | 18 24 17 1 Robot Hit Streak 12 | 4 12 9 . Robot Miss Streak 2 | 2 1 1 1 Penetration Max . | . . . . Secondary Targets . | . . . . Shots Hit Robots 49 | 11 19 19 . Core Hits 24 | 3 12 9 . Critical Kills . | . . . . Critical Parts Destroyed . | . . . . Critical Strikes . | . . . . Melee Attacks . | . . . . Impact . | . . . . Slashing . | . . . . Piercing . | . . . . Sneak Attacks . | . . . . Combat Hostiles . | . . . . Follow-up Attacks . | . . . . Damage Inflicted 785 | 143 300 342 . Guns 663 | 143 269 251 . Cannons . | . . . . Explosions 115 | . 24 91 . Melee . | . . . . Ramming 7 | . 7 . . Kinetic . | . . . . Thermal 160 | . 24 136 . Explosive . | . . . . Electromagnetic 618 | 143 269 206 . Impact . | . . . . Slashing . | . . . . Piercing . | . . . . Highest Corruption 2 | . 2 2 2 Average Corruption 2 | . 2 2 2 Corruption Purged . | . . . . Corruption Blocked . | . . . . Effects 8 | . . 2 6 Message Errors 1 | . . 1 . Matter Fused 2 | . . 1 1 Heat Flow Errors 1 | . . . 1 Data Loss (minor) 3 | . . . 3 Misfires 1 | . . . 1 Overload Shots . | . . . . Overflow Damage . | . . . . Projectiles . | . . . . Explosions . | . . . . Melee . | . . . . Knockbacks . | . . . . Impact . | . . . . Kinetic . | . . . . Secondary . | . . . . Self-Inflicted Damage 71 | . 37 34 . Shots 2 | . 1 1 . Rammed . | . . . . Targets Rammed 2 | . 2 . . Kicked 2 | . 2 . . Crushed . | . . . . Highest Temperature 313 | 60 117 313 97 Average Temperature 71 | 23 46 124 39 Received Heat Transfer 222 | 12 84 126 . Siege Activations . | . . . . Robots Corrupted . | . . . . Combat Hostiles . | . . . . Parts Fried 2 | 2 . . . Impact Corruptions . | . . . . Robots Melted . | . . . . Combat Hostiles . | . . . . Parts Melted . | . . . . Heat Transferred 261 | . 50 211 . Parts Sabotaged . | . . . . Parts Stolen . | . . . . Parts Stripped . | . . . . Power Chain Reactions 4 | . 1 3 . Alert | -11 -10 -10 -10 ------- Run | Yrd Mat Min Exi Peak Influence 151 | 25 151 115 . Initial 16 | . 16 . . Average 60 | 2 83 57 . Maximum Alert Level . | . . . . Low Security (%) 100 | 100 100 100 . Level 1 . | . . . . Level 2 . | . . . . Level 3 . | . . . . Level 4 . | . . . . Level 5 . | . . . . High Security . | . . . . Max Security . | . . . . Squads Dispatched 1 | . 1 . . Investigation 1 | . 1 . . Extermination . | . . . . Reinforcement . | . . . . Assault . | . . . . Garrison . | . . . . Intercept . | . . . . Searches Triggered . | . . . . Construction Impeded . | . . . . Haulers Reinforced . | . . . . Active Scanning Responses . | . . . . Cargo Convoy Interrupts . | . . . . Stealth | -11 -10 -10 -10 --------- Run | Yrd Mat Min Exi Distress Signals 1 | . 1 . . Communications Jammed . | . . . . Distress Signals . | . . . . Times Spotted 14 | 1 7 4 2 Peak Tracking Total 12 | 1 3 2 12 Tactical Retreats . | . . . . Traps | -11 -10 -10 -10 ------- Run | Yrd Mat Min Exi Traps Triggered 1 | . 1 . . Indirectly . | . . . . Trap Hack Attempts . | . . . . Triggered . | . . . . Disarmed . | . . . . Reprogrammed . | . . . . Reused . | . . . . Traps Extracted . | . . . . Installed . | . . . . Triggered . | . . . . Machines | -11 -10 -10 -10 ---------- Run | Yrd Mat Min Exi Machines Disabled . | . . . . Max in Single Turn . | . . . . Machines Repaired . | . . . . Machines Dismantled . | . . . . Machines Sabotaged . | . . . . Overloaded Fab Kills . | . . . . Hacking | -11 -10 -10 -10 --------- Run | Yrd Mat Min Exi Machines Accessed 4 | . 3 . 1 Terminals 1 | . 1 . . Fabricators . | . . . . Repair Stations . | . . . . Recycling Units 2 | . 2 . . Scanalyzers . | . . . . Garrison Access . | . . . . Total Hacks 12 | . 8 . 4 Successful 8 | . 4 . 4 Failed 4 | . 4 . . Catastrophic 1 | . 1 . . Database Lockouts . | . . . . Manual 1 | . 1 . . Terminals 4 | . 4 . . Fabricators . | . . . . Repair Stations . | . . . . Recycling Units 4 | . 4 . . Scanalyzers . | . . . . Garrison Access . | . . . . Terminal Hacks 5 | . 1 . 4 Record 5 | . 1 . 4 Fabricator Hacks . | . . . . Repair Station Hacks . | . . . . Recycling Unit Hacks 3 | . 3 . . Report Inventory 2 | . 2 . . Retrieve Components 1 | . 1 . . Scanalyzer . | . . . . Garrison Access Hacks . | . . . . Unauthorized Hacks . | . . . . Terminals . | . . . . Fabricators . | . . . . Repair Stations . | . . . . Recycling Units . | . . . . Scanalyzers . | . . . . Garrison Access . | . . . . Data Cores Recovered . | . . . . Used . | . . . . Hacking Detections 3 | . 3 . . Full Trace Events 2 | . 2 . . Feedback Events . | . . . . Feedback Blocked . | . . . . Robot Schematics Acquired . | . . . . Robots Built . | . . . . Authchips . | . . . . Time . | . . . . Total Robot Build Rating . | . . . . Part Schematics Acquired . | . . . . Parts Built . | . . . . Authchips . | . . . . Time . | . . . . Total Part Build Rating . | . . . . Parts Repaired . | . . . . Time . | . . . . Parts Recycled . | . . . . Recycled Matter . | . . . . Retrieved Matter . | . . . . Retrieved Components 9 | . 9 . . Parts Scanalyzed . | . . . . Part Schematics Acquired . | . . . . Parts Damaged . | . . . . Bothacking | -11 -10 -10 -10 ------------ Run | Yrd Mat Min Exi Used RIF Installer . | . . . . Robots Hacked . | . . . . Non-combat . | . . . . Combat . | . . . . Robot Hacks Applied . | . . . . Relay Couplers Released . | . . . . Fabnet Peak Effective % . | . . . . Robots Rewired . | . . . . Allies Hacked . | . . . . Hacks Repelled . | . . . . Allies | -11 -10 -10 -10 -------- Run | Yrd Mat Min Exi Total Allies . | . . . . Largest Group . | . . . . Highest-Rated Group . | . . . . Highest-Rated Ally . | . . . . Total Orders . | . . . . Ally Attacks . | . . . . Total Damage . | . . . . Kills . | . . . . Allies Corrupted . | . . . . Allies Melted . | . . . . Intel | -11 -10 -10 -10 ------- Run | Yrd Mat Min Exi Robot Analysis Total . | . . . . Derelict Logs Recovered 1 | . . 1 . Drone Launches . | . . . . Drone Recoveries . | . . . . Exploration | -11 -10 -10 -10 ------------- Run | Yrd Mat Min Exi Turns Passed 1310 | 177 460 233 440 Spaces Moved 946 | 123 300 154 369 Core 18 | 14 . . 4 Treads . | . . . . Legs 928 | 109 300 154 365 Wheels . | . . . . Hover . | . . . . Flight . | . . . . Fastest Speed 50 | 50 120 120 50 Average Speed 118 | 112 120 120 119 Slowest Speed 120 | 120 120 120 120 Overloaded Moves . | . . . . Propulsion Burnouts . | . . . . Robots Hopped . | . . . . Cave-ins Triggered . | . . . . Exploration Rate (%) 44 | 7 46 46 78 Regions Visited 3 Branch Regions 2 Pre-discovered Areas 1 | . . . 1 Known Exits Taken . | . . . . Unknown Exits Taken 3 | 1 1 1 . Scrap Searched 1 | . . 1 . Spaces Dug . | . . . . Terrain Destroyed 24 | . 3 21 . Melee . | . . . . Projectile . | . . . . AOE 24 | . 3 21 . Terrain Rammed . | . . . . Walls Destroyed . | . . . . Machines Disabled . | . . . . Actions | -11 -10 -10 -10 --------- Run | Yrd Mat Min Exi Total 1069 | 141 379 180 369 Wait 51 | . 44 7 . Move 943 | 122 299 153 369 Hop . | . . . . Pick Up 12 | 4 8 . . Fast Attach 6 | 5 1 . . Attach 2 | . 1 1 . Detach . | . . . . Swap 7 | 1 3 3 . Drop 12 | . 9 3 . Fire 34 | 9 12 13 . Melee . | . . . . Ram . | . . . . Kick 2 | . 2 . . Crush . | . . . . Escape Stasis . | . . . . Rewire . | . . . . Trap . | . . . . Miscellaneous . | . . . . Route ------- -11/Scrapyard -10/Materials (discovered 2 exits: [*Mat] / [*Min]) -10/Mines (discovered 2 exits: [Mat] / *Exi) -10/Exiles (discovered 2 exits: [*Min x2]) History --------- Turn | Location | Event 2 | -11/Scrapyard | Met Revision 17 155 | -11/Scrapyard | Discovered new exit (range 8) 178 | -11/Scrapyard | Entered Materials 302 | -10/Materials | Build established: Mutant 334 | -10/Materials | Discovered new exit (range 13) 605 | -10/Materials | Discovered new exit (range 9) 638 | -10/Materials | Entered Mines 712 | -10/Mines | Build established: Scavenger-Mutant 830 | -10/Mines | Core integrity fell below 50% 839 | -10/Mines | Discovered new exit (range 12) 864 | -10/Mines | Deemed a non-threat by the Exiles lab entrance 864 | -10/Mines | Discovered new exit (range 5) 871 | -10/Mines | Entered Exiles 888 | -10/Exiles | Discovered new exit (range 15) 903 | -10/Exiles | Met 8R-AWN 927 | -10/Exiles | Met EX-HEX 973 | -10/Exiles | Met EX-DEC 996 | -10/Exiles | Learned location of Zion (-7) 1062 | -10/Exiles | Discovered new exit (range 14) 1157 | -10/Exiles | Visited The Gauntlet 1299 | -10/Exiles | Attacked by the Exiles 1310 | -10/Exiles | Core integrity fell below 20% 1311 | -10/Exiles | Destroyed by DAS Turret with DAS Cannon Last Messages --------------- EXILES: Hostile robot within lab perimeter. Defensive protocols time, folks! EX-DEC: "Let's see what this bad boy can do..." EX-DEC deploys DAS Turret. Machine disabled. EM Pulse Gun destroyed. Ion Engine destroyed. Aluminum Leg destroyed. Critical hit (Blast). Knocked back. Machine disabled. Chain reaction triggered in Mak. Power Source. OC-DLG(z) destroyed. Imp. Terrain Scanner destroyed. Knocked back. EX-BIN: "I just want to science!" Particle Gun destroyed. Aluminum Leg destroyed. Knocked back. [Achievement: First Step to Greatness] Map ----- +----------------------------------------------------+ | ?????#?#???#???????#?????????????????????????????? | | ??#?#????????????????????????????????????????????? | | ##?#????#????????????????????????????????????????? | | ##?????##?????????#??????????????????????????????? | | ##?????#??#??????????????????????????????????????? | | #########?????????#??#???????????????????????????? | | ###???##?###?#?#????#????????????????????????????? | | ???#????#?#???#?#???#????????????????????????????? | | #??#?#??#?#?##???#???????????????????????????????? | | ##?#?#??#######??###?????????????????????????????? | | ##??????#!!! "#?????????#????????????????????????? | | "##????## "##?????#??#?????#?#????????????????? | | ##?##?# "###?#?#???#????????????????????????? | | ##?#### ""#?#??###?#??###?#????#?????? ?? | | #####" ""##?#?#??##?# ? """?????????? | | ##" ""#?#?#??#?????? """#??#?????? | | #"" ####??####?????" #??#?????? | | ##?#?#?#?####??" ????????#?" | | # ##?##????##???"" "#??#?#?###" ? | | ### "#?##?#####?#? ""????#?##?#" ?? | | ##" #####?#####?#"" "??##?##??##" #?# | | """ ###?????##### ###?#??####"" ##? | | "###"" ########?### ##########"" #?? | | "####" """#####X# #"###""""""" ##? | | ##??#" """""" " "" ## | | """###?###"# @ " """ " # | | ####?#?###### " " | | #####?###?##### c | | ???###?????###### | | ??#?#??###??#??### | | #?#?#?###?##?##??## | | ?##??#?#?####?##??##" % | | ###???????#?????#??#""" % """""" | | ???#??##?#???##?#?##" ######""" | | ?????#??####??#?###"" ""#####?#####"" | | #?#??##??#???##?###""" """##?#???#?####" | | ?????#??#?###?#??#""" "#####????#?#?#" | | ??????#??????##?##""" ""#??###?#??##?#" | | ????????????#?#??#"" = "##?####?????#"" | | ?????????????#?#?#""" ## ###??"" | | ??????????????#??#"" t """" | | ???????????????####"" | | ????????????#?#?#?#"""" | | ????????????#????### | | ????????????????####" " "" | | ???????????????#???#"""" ""## ##""" | | ?????????????????#?#"" ""###?????### | | ????????????????#?##" """"###??? ????# | | ?????????????????###""" """#????? ????? | | ???????????????????## ""##???? ? ???# | +----------------------------------------------------+ Best States ------------- Heat Dissipation 25 Energy Generation 10 Energy Capacity 250 Matter Stores 300 Matter Capacity 300 Sight Range 16 Terrain Scan Range 16 Terrain Scan Density 85 Evasion (%) 55 Item Schematics ----------------- None Robot Schematics ------------------ None Fabricated ------------ Nothing Alien Tech Used ----------------- None Achievements -------------- First Step to Greatness One Hack Too Far Challenges ------------ None Game ------ Seed AmuletArcTerrabomb Manual? 0 Play Time 00:28:46 Cumulative 1.1 hours Start 2025.03.25 @ 17:38:26 End 2025.03.25 @ 18:09:05 Sessions 1 Manual Loads 0 Difficulty Rogue Special Mode None Game No. 2 Rogue 2 Adventurer 0 Explorer 0 Win Type - Total 0 Types 0/0/0/0/0/0/0/0/0 Lore% 2 Gallery% 2 Achievement% 2 Wizard Run 0 Options --------- Layout 1 ASCII 0 Keyboard 1 Movement Numpad Keybinds 0 Fullscreen 1 Font 32/Terminus Map View 50x35 Zoom Use 0% Tactical HUD 0 Map Filters NONE Filters NONE Steam 0 RUN: 2fc68de5-e2a6-4c7f-a19a-8d1678b83fae